[Event "4th Sinquefield Cup 2016"]
[Site "Saint Louis"]
[Date "2016.08.12"]
[Round "7"]
[White "Caruana, Fabiano"]
[Black "Ding, Liren"]
[Result "1/2-1/2"]
[ECO "C92"]
[WhiteElo "2807"]
[BlackElo "2755"]
[Annotator ""]
[PlyCount "189"]
[EventDate "2016.??.??"]
[EventCountry "USA"]
[SourceTitle "playchess.com"]
[Source "ChessBase"]
[TimeControl "40/7200:3600+30"]

1. e4 {(3s)} e5 {(5s)} 2. Nf3 {(3s)} Nc6 {(4s)} 3. Bb5 {(5s)} a6 {(4s)} 4. Ba4 {(4s)} Nf6 {(4s)} 5. O-O
{(6s)} Be7 {(3s)} 6. Re1 {(5s)} b5 {(4s)} 7. Bb3 {(3s)} d6 {(5s)} 8. c3 {(5s)} O-O {(5s)} 9. h3 {(3s)} Re8
{(5s)} 10. d4 {(14s)} Bb7 {(5s)} 11. Nbd2 {(8s)} Bf8 {(4s)} 12. Bc2 {(22s)} h6 {(100s)} 13. d5 {(9s)}
Nb8 {(173s)} 14. b3 {(18s)} c6 {(125s)} 15. c4 {(7s)} Nbd7 {(2s)} 16. Nf1 {(413s)} Qc7 {(508s)} 17.
Be3 {(174s)} a5 {(654s)} 18. Rc1 {(732s)} Ba6 {(495s)} 19. cxb5 {(539s)} Bxb5 {(3s)} 20. Bd3 {(10s)}
Qb7 {(5s)} 21. Bxb5 {(21s)} cxb5 22. Ng3 {(275s)} Rec8 {(57s)} 23. Qd3 {(135s)} h5 {(125s)} 24.
Rc3 {(790s)} b4 {(156s)} 25. Rxc8 {(172s)} Rxc8 {(17s)} 26. Rc1 {(61s)} Rxc1+ {(204s)} 27. Bxc1 {(
11s)} Nc5 {(11s)} 28. Qc4 {(400s)} g6 {(18s)} 29. Bg5 {(50s)} Nfd7 {(968s)} 30. Nd2 {(207s)} a4 {(
762s)} 31. Kh2 {(1495s)} Qb6 {(336s)} 32. Ne2 {(559s)} axb3 {(356s)} 33. axb3 {(6s)} Qa5 {(2s)} 34.
Ng1 {(98s)} Nb6 {(167s)} 35. Qe2 {(49s)} Nc8 {(356s)} 36. Ngf3 {(134s)} Be7 {(156s)} 37. Be3 {(265
s)} Nb6 {(42s)} 38. Ne1 {(120s)} Nbd7 {(482s)} 39. Nc2 {(99s)} Qa6 {(4s)} 40. Qxa6 {(0s)} Nxa6 {(0s)}
41. Kg1 {(395s)} Kf8 {(1228s)} 42. Kf1 {(104s)} Bd8 {(5s)} 43. Ke2 {(785s)} Bb6 {(8s)} 44. Bh6+ {(
35s)} Ke7 {(174s)} 45. f3 {(6s)} Ndc5 {(524s)} 46. Be3 {(109s)} f5 {(316s)} 47. g4 {(243s)} hxg4 {(
193s)} 48. hxg4 {(7s)} fxg4 {(99s)} 49. fxg4 {(5s)} Nd7 {(76s)} 50. Bg5+ {(215s)} Ke8 {(185s)} 51.
Nc4 {(235s)} Bc7 {(226s)} 52. Be3 {(348s)} Ndc5 {(38s)} 53. Nd2 {(296s)} Ba5 {(5s)} 54. Ne1 {(290s)}
Bb6 {(34s)} 55. Bxc5 {(266s)} Bxc5 {(673s)} 56. Nef3 {(192s)} Nc7 {(95s)} 57. Ng5 {(40s)} Ke7 {(
269s)} 58. Kd3 {(6s)} Kf6 {(3s)} 59. Ndf3 {(38s)} Bf2 {(251s)} 60. Nh3 {(349s)} Bg3 {(33s)} 61.
Nhg1 {(179s)} Na6 {(63s)} 62. g5+ {(52s)} Ke7 {(25s)} 63. Nd2 {(5s)} Kd7 {(297s)} 64. Kc4 {(5s)} Kc7
{(3s)} 65. Kb5 {(7s)} Nc5 {(5s)} 66. Ngf3 {(14s)} Nd3 {(80s)} 67. Kc4 {(30s)} Nf2 {(6s)} 68. Kxb4 {(
21s)} Bf4 {(4s)} 69. Kb5 {(366s)} Nh3 {(23s)} 70. b4 {(14s)} Nxg5 {(94s)} 71. Ka6 {(76s)} Nxf3 {(117
s)} 72. Nxf3 {(3s)} g5 {(2s)} 73. b5 {(5s)} g4 {(4s)} 74. b6+ {(9s)} Kb8 {(21s)} 75. Nh4 {(14s)} g3 {(
40s)} 76. Nf5 {(131s)} g2 {(20s)} 77. Ne7 {(3s)} g1=Q {(3s)} 78. Nc6+ {(4s)} Kc8 {(2s)} 79. b7+ {(4s)}
Kd7 {(1s)} 80. b8=Q {(9s)} Qf1+ {(137s)} 81. Kb7 {(37s)} Qb5+ {(39s)} 82. Ka8 {(5s)} Qa4+ {(10s)}
83. Qa7+ {(163s)} Qxa7+ {(3s)} 84. Nxa7 {(3s)} Kc7 {(175s)} 85. Nb5+ {(6s)} Kb6 {(4s)} 86. Nxd6 {(
4s)} Kc5 {(2s)} 87. Nf5 {(109s)} Bg5 {(6s)} 88. Kb7 {(28s)} Kc4 {(6s)} 89. d6 {(36s)} Kd3 {(5s)} 90.
Ng3 {(15s)} Ke3 {(19s)} 91. d7 {(46s)} Kf3 {(25s)} 92. Nh5 {(24s)} Kxe4 {(10s)} 93. Kc6 {(14s)} Kf3
{(34s)} 94. Ng7 {(18s)} e4 {(6s)} 95. Nf5 {(16s)} 1/2-1/2